bitfinex/quotes_SOLUSD_20260310
["timestamp","ask_amount","ask_price","bid_price","bid_amount"]
[1773103746031,58.20729589,85.9,85.84,0.5]
[1773103746032,2.54119566,85.88,85.86,11.17672303]
[1773103746323,2.54119566,85.878,85.851,2.49440647]
[1773103746528,2.54119566,85.878,85.84,41.27350818]
[1773103746529,2.54119566,85.878,85.844,2.49440647]
[1773103747620,2.54119566,85.876,85.845,11.64890209]
[1773103748129,2.54119566,85.876,85.844,2.49440647]
[1773103748930,2.54119566,85.876,85.845,11.64890209]
[1773103750037,2.54119566,85.874,85.845,11.64890209]
[1773103750625,2.54119566,85.874,85.845,14.14330856]
[1773103750841,2.54119566,85.874,85.851,2.49440647]
[1773103751014,2.54119566,85.889,85.851,2.49440647]
[1773103751218,14.18413014,85.889,85.86,11.17672303]
[1773103751523,2.54119566,85.888,85.861,2.49440647]
[1773103752029,11.64245079,85.893,85.871,2.49440647]
[1773103753322,14.18364645,85.893,85.871,2.49440647]
[1773103753642,2.54119566,85.892,85.871,2.49440647]
[1773103753824,2.54119566,85.892,85.863,2.49440647]
[1773103755520,2.54119566,85.889,85.862,11.6465957]
[1773103755735,2.54119566,85.889,85.862,2.49440647]
[1773103755917,2.54119566,85.889,85.862,11.64650353]
[1773103756821,29.10454725,85.898,85.862,11.64650353]
[1773103756822,11.64218904,85.895,85.871,2.49440647]
[1773103757131,2.54119566,85.894,85.871,2.49440647]
[1773103757536,4.16715194,85.89,85.868,11.64572904]
[1773103757839,4.16715194,85.89,85.622,83.36495751]
[1773103757840,2.54119566,85.879,85.851,2.49440647]
[1773103758933,14.18562147,85.878,85.853,11.64776085]
[1773103759520,2.54119566,85.878,85.86,4.16715194]
[1773103759716,2.54119566,85.886,85.86,6.66155841]
[1773103760236,2.54119566,85.886,85.853,14.14216732]
[1773103761738,2.54119566,85.884,85.853,14.14216732]
[1773103762436,2.54119566,85.884,85.854,2.49440647]
[1773103765025,2.54119566,85.884,85.856,2.49440647]
[1773103765224,2.54119566,85.884,85.86,4.16774488]
[1773103765941,2.54119566,85.884,85.84,4.16774488]
[1773103765942,2.54119566,85.869,85.833,2.49440647]
[1773103766144,2.54119566,85.869,85.841,2.49440647]
[1773103766923,11.64401904,85.881,85.852,11.64795228]
[1773103767139,2.54119566,85.889,85.861,2.49440647]
[1773103770020,2.54119566,85.887,85.862,11.6465957]
[1773103771132,11.64307004,85.888,85.8,4.16774488]
[1773103771133,2.54119566,85.869,85.82,4.16774488]
[1773103771431,2.54119566,85.849,85.821,2.49440647]
[1773103773649,2.53610903,85.859,85.831,2.46541849]
[1773103774028,4.16774488,85.88,85.822,40.78208384]
[1773103774029,2.53610903,85.891,85.851,2.46541849]
[1773103774228,2.53610903,85.891,85.87,4.16774488]
[1773103774429,2.53610903,85.89,85.865,2.46541849]
[1773103774630,2.53610903,85.89,85.86,4.16774488]
[1773103775650,2.53610903,85.888,85.852,2.46541849]
[1773103776653,11.6432056,85.887,85.853,14.1132351]
[1773103776950,2.53610903,85.886,85.853,14.1132351]
[1773103778050,4.16774488,85.88,85.854,2.46541849]
[1773103778353,4.16774488,85.88,85.85,4.16774488]
[1773103778354,2.53610903,85.879,85.85,4.16774488]
[1773103778553,2.53610903,85.879,85.851,2.46541849]
[1773103779331,2.53610903,85.877,85.851,14.11350645]
[1773103779751,2.53610903,85.877,85.852,2.46541849]
[1773103783051,2.53610903,85.877,85.854,2.46541849]
[1773103784155,11.64392334,85.882,85.854,2.46541849]
[1773103784452,2.53610903,85.884,85.861,2.46541849]
[1773103785341,2.53610903,85.884,85.863,2.46541849]
[1773103785958,2.53610903,85.896,85.863,2.46541849]
[1773103786177,2.53610903,85.896,85.87,4.16774488]
[1773103786967,2.53610903,85.896,85.863,2.46541849]
[1773103789842,6.54314707,85.91,85.871,2.47201209]
[1773103790044,11.6406859,85.906,85.871,2.47201209]
[1773103790276,11.6406859,85.906,85.865,2.47201209]
[1773103790277,2.37540219,85.899,85.865,2.47201209]
[1773103790472,2.37540219,85.889,85.865,2.47201209]
[1773103791065,2.37540219,85.889,85.87,0.5]
[1773103791463,2.37540219,85.889,85.865,2.47201209]
[1773103792138,2.37540219,85.887,85.852,2.47201209]
[1773103792342,2.37540219,85.879,85.853,11.64781661]
[1773103792645,2.37540219,85.879,85.854,2.47201209]
[1773103793358,2.37540219,85.887,85.861,2.47201209]
[1773103794548,2.37540219,85.879,85.851,11.64808796]
[1773103795071,2.37540219,85.879,85.851,14.12010005]
[1773103796869,2.37540219,85.887,85.852,2.47201209]
[1773103797952,2.37540219,85.885,85.854,2.47201209]
[1773103798965,2.37540219,85.869,85.834,2.47201209]
[1773103799148,2.37540219,85.869,85.836,2.47201209]
[1773103800568,2.37540219,85.869,85.841,2.47201209]
[1773103800864,2.37540219,85.867,85.837,40.77495717]
[1773103801187,2.37540219,85.867,85.84,0.5]
[1773103801368,2.37540219,85.859,85.84,0.5]
[1773103802066,2.37540219,85.866,85.841,2.47201209]
[1773103802369,2.37540219,85.875,85.843,2.47201209]
[1773103802867,11.6449682,85.874,85.843,2.47201209]
[1773103803072,14.02037039,85.874,85.843,2.47201209]
[1773103803248,2.37540219,85.873,85.843,2.47201209]
[1773103803568,2.46765428,85.903,85.861,2.42959782]
[1773103803749,2.46765428,85.903,85.871,2.42959782]
[1773103804566,4.16774488,85.91,85.87,4.16774488]
[1773103804567,2.46765428,85.901,85.873,2.42959782]
[1773103804767,6.63539916,85.9,85.873,2.42959782]
[1773103804971,2.46765428,85.879,85.813,11.65324601]
[1773103805150,4.16774488,85.83,85.801,2.42959782]
[1773103805352,6.63539916,85.83,85.801,2.42959782]
[1773103805553,2.46765428,85.846,85.801,2.42959782]
[1773103805763,4.16774488,85.84,85.801,2.42959782]
[1773103806074,6.63539916,85.84,85.801,2.42959782]
[1773103806453,2.46765428,85.839,85.801,2.42959782]
[1773103806667,2.46765428,85.839,85.803,2.42959782]
[1773103807162,2.46765428,85.837,85.803,2.42959782]
[1773103807552,4.16774488,85.83,85.803,2.42959782]
[1773103807865,2.46765428,85.837,85.803,2.42959782]
[1773103809367,11.65012349,85.836,85.805,2.42959782]
[1773103809569,2.46765428,85.837,85.805,2.42959782]
[1773103810970,4.16774488,85.86,85.821,2.42959782]
[1773103811469,2.46765428,85.858,85.83,4.16774488]
[1773103811647,2.46765428,85.858,85.831,2.42959782]
[1773103812550,2.46765428,85.858,85.823,2.42959782]
[1773103812747,2.46765428,85.858,85.8,4.16774488]
[1773103812748,6.63539916,85.84,85.816,11.6527615]
[1773103812946,2.46765428,85.839,85.816,11.6527615]
[1773103813350,2.46765428,85.837,85.806,2.42959782]
[1773103813550,2.46765428,85.829,85.806,2.42959782]
[1773103813772,2.46765428,85.829,85.801,11.65487581]
[1773103815449,11.65120939,85.828,85.801,11.65487581]
[1773103815656,2.46765428,85.819,85.795,11.65557049]
[1773103816475,2.46765428,85.819,85.796,2.42959782]
[1773103816773,2.46765428,85.819,85.789,11.65642128]
[1773103816966,2.46765428,85.819,85.789,14.0860191]
[1773103817273,2.46765428,85.819,85.79,2.42959782]
[1773103817663,11.65256706,85.818,85.792,2.42959782]
[1773103817864,2.46765428,85.827,85.792,2.42959782]
[1773103818060,2.46765428,85.827,85.8,13.61082609]
[1773103818574,14.11816222,85.834,85.801,2.42959782]
[1773103818778,2.46765428,85.841,85.811,2.42959782]
[1773103818981,2.46765428,85.848,85.821,2.42959782]
[1773103819658,11.64752511,85.856,85.823,2.42959782]
[1773103819860,2.46765428,85.855,85.823,2.42959782]
[1773103820068,11.64681694,85.861,85.831,2.42959782]
[1773103820277,11.18122827,85.86,85.831,2.42959782]
[1773103820475,2.46765428,85.849,85.82,2.42959782]
[1773103821173,2.46765428,85.849,85.821,11.65215972]
[1773103821477,2.46765428,85.849,85.821,14.08175754]
[1773103821878,2.46765428,85.847,85.811,2.42959782]
[1773103822076,2.46765428,85.829,85.791,2.42959782]
[1773103822384,11.18122827,85.82,85.791,2.42959782]
[1773103822975,2.46765428,85.822,85.791,2.42959782]
[1773103823479,2.46765428,85.829,85.801,2.42959782]
[1773103824158,2.46765428,85.827,85.802,11.65473998]
[1773103825960,11.17898922,85.82,85.793,2.42959782]
[1773103826177,2.46765428,85.819,85.794,11.65582674]
[1773103827776,25.2990589,85.82,85.791,2.42959782]
[1773103827959,2.46765428,85.819,85.791,2.42959782]
[1773103828984,2.46765428,85.819,85.77,62.6]
[1773103828985,11.65160438,85.826,85.793,2.42959782]
[1773103829587,2.46765428,85.825,85.793,2.42959782]
[1773103830173,2.46765428,85.825,85.801,2.42959782]
[1773103831195,2.46765428,85.825,85.802,11.65473998]
[1773103831779,11.65175242,85.824,85.802,11.65473998]
[1773103832088,14.11756442,85.838,85.803,2.42959782]
[1773103832269,2.46765428,85.837,85.803,2.42959782]
[1773103833271,11.17898922,85.84,85.804,11.65446832]
[1773103833272,2.41405505,85.835,85.804,11.65446832]
[1773103833670,2.41405505,85.835,85.805,2.56954523]
[1773103833876,11.17898922,85.83,85.805,2.56954523]
[1773103835369,2.41405505,85.844,85.811,2.56954523]
[1773103835573,14.06322854,85.843,85.811,2.56954523]
[1773103835776,2.41405505,85.839,85.811,2.56954523]
[1773103835969,2.41405505,85.829,85.802,11.65467835]
[1773103836282,2.41405505,85.829,85.791,40.79682017]
[1773103836480,2.41405505,85.829,85.792,2.56954523]
[1773103836873,2.41405505,85.836,85.77,0.2]
[1773103837067,3.69383402,85.837,85.771,11.65895232]
[1773103837068,4.17201986,85.79,85.771,11.65895232]
[1773103837284,4.17201986,85.79,85.772,2.56954523]
[1773103837590,4.17201986,85.79,85.774,2.56954523]
[1773103838711,11.65446547,85.805,85.774,2.56954523]
[1773103838986,4.17201986,85.8,85.774,2.56954523]
[1773103839984,4.17201986,85.8,85.775,11.65840862]
[1773103840288,4.17201986,85.8,85.776,2.56954523]
[1773103841493,6.58607491,85.8,85.777,11.65813679]
[1773103841678,11.65514749,85.799,85.777,14.22768202]
[1773103842188,11.65514749,85.799,85.778,2.56954523]
[1773103842386,6.58607491,85.8,85.778,2.56954523]
[1773103842584,11.65514749,85.799,85.778,2.56954523]
[1773103842788,6.58607491,85.8,85.778,2.56954523]
[1773103843697,11.65402428,85.808,85.78,2.56954523]
[1773103843901,11.65298616,85.815,85.78,2.56954523]
[1773103844081,2.41405505,85.817,85.781,2.56954523]
[1773103844389,2.41405505,85.799,85.779,11.65786497]
[1773103845493,2.41405505,85.799,85.77,1e-08]
[1773103845694,2.41405505,85.769,85.75,0.2]
[1773103845993,2.41405505,85.759,85.74,0.2]
[1773103846776,4.17201986,85.76,85.74,0.2]
[1773103846980,2.41405505,85.775,85.742,2.56954523]
[1773103847894,2.41405505,85.773,85.744,2.56954523]
[1773103849783,13.60768445,85.77,85.744,2.56954523]
[1773103849981,2.41405505,85.769,85.745,11.6624876]
[1773103850205,14.07327924,85.769,85.745,11.6624876]
[1773103850707,2.39111462,85.768,85.745,11.6624876]
[1773103851203,2.39111462,85.768,85.746,2.36488246]
[1773103852207,2.39111462,85.768,85.747,11.66221558]
[1773103852611,2.39111462,85.766,85.74,0.2]
[1773103852803,2.39111462,85.759,85.74,0.2]
[1773103853591,2.39111462,85.749,85.73,0.2]
[1773103854187,2.39111462,85.749,85.73,11.86440036]
[1773103854709,14.05211594,85.756,85.73,14.22928282]
[1773103855006,14.05211594,85.756,85.731,2.36488246]
[1773103855182,2.39111462,85.755,85.731,2.36488246]
[1773103856012,2.39111462,85.755,85.731,14.02927457]
[1773103856896,2.39111462,85.749,85.73,0.2]
[1773103857415,2.39111462,85.749,85.72,0.2]
[1773103858208,2.39111462,85.731,85.72,0.2]
[1773103858506,11.66194357,85.749,85.72,11.86586253]
[1773103858714,11.66194357,85.749,85.72,0.2]
[1773103859292,11.66194357,85.749,85.721,2.36488246]
[1773103859904,3.69383402,85.776,85.722,2.36488246]
[1773103860098,11.1936294,85.76,85.722,2.36488246]
[1773103860295,14.05183431,85.758,85.724,2.36488246]
[1773103860494,2.39111462,85.757,85.724,2.36488246]
[1773103862208,2.39111462,85.757,85.731,2.36488246]
[1773103862504,2.39111462,85.757,85.72,0.2]
[1773103862505,11.66099165,85.756,85.733,2.36488246]
[1773103862704,11.66099165,85.756,85.732,11.66425605]
[1773103862705,2.39111462,85.789,85.751,2.36488246]
[1773103863095,11.65650607,85.789,85.751,2.36488246]
[1773103863294,2.39111462,85.788,85.751,2.36488246]
[1773103863813,2.39111462,85.788,85.761,2.53432137]
[1773103864407,2.48951955,85.796,85.772,2.53432137]
[1773103865488,2.48951955,85.796,85.757,29.15194765]
[1773103865489,2.48951955,85.796,85.774,2.53432137]
[1773103865723,11.65569089,85.795,85.774,2.53432137]
[1773103866599,14.14521044,85.795,85.774,2.53432137]
[1773103867399,8.36670895,85.797,85.774,2.53432137]
[1773103868202,8.36670895,85.797,85.77,11.1936294]
[1773103868203,20.02216609,85.797,85.776,2.53432137]
[1773103868808,8.36670895,85.797,85.776,2.53432137]
[1773103871317,11.65555503,85.796,85.776,2.53432137]
[1773103872020,14.14507458,85.796,85.776,2.53432137]
[1773103872414,11.65555503,85.796,85.776,2.53432137]
[1773103872601,8.36670895,85.797,85.777,2.53432137]
[1773103874005,20.02225435,85.797,85.777,2.53432137]
[1773103874211,2.48951955,85.796,85.772,2.53432137]
[1773103874909,2.48951955,85.779,85.745,11.6624876]
[1773103875309,2.48951955,85.779,85.745,14.19680897]
[1773103875623,11.1936294,85.78,85.751,2.53432137]
[1773103876325,11.65786497,85.779,85.752,11.66153559]
[1773103876511,11.65786497,85.779,85.753,2.53432137]
[1773103876830,14.14738452,85.779,85.753,2.53432137]
[1773103877527,2.48951955,85.788,85.753,2.53432137]
[1773103879324,2.48951955,85.786,85.753,2.53432137]
[1773103879523,2.48951955,85.786,85.754,14.19558498]
[1773103879725,2.48951955,85.786,85.755,2.53432137]
[1773103880216,2.48951955,85.779,85.748,2.53432137]
[1773103880419,2.48951955,85.779,85.744,2.53432137]
[1773103881416,14.14751495,85.779,85.751,2.53432137]
[1773103881615,2.48951955,85.779,85.751,2.53432137]
[1773103882817,14.14738682,85.779,85.753,2.53432137]
[1773103883509,11.65569089,85.795,85.761,2.53432137]
[1773103883709,2.48951955,85.794,85.761,2.53432137]
[1773103885336,8.36670895,85.797,85.771,2.53432137]
[1773103885545,2.48951955,85.796,85.771,2.53432137]
[1773103886939,2.48951955,85.796,85.773,2.53432137]
[1773103887235,2.48951955,85.796,85.772,11.65881639]
[1773103889338,2.48951955,85.789,85.761,11.66022877]
[1773103889523,2.48951955,85.787,85.761,11.66022877]
[1773103891532,11.65691371,85.786,85.761,11.66022877]
[1773103891739,2.48951955,85.785,85.761,11.66022877]
[1773103892237,2.48951955,85.796,85.762,2.53432137]
[1773103892446,11.65592064,85.794,85.762,2.53432137]
[1773103892624,14.14544019,85.794,85.762,2.53432137]
[1773103892825,14.14544019,85.794,85.771,2.53432137]
[1773103893947,14.14544019,85.794,85.772,2.34810142]
[1773103894242,2.39199352,85.793,85.772,2.34810142]
[1773103897143,11.65609847,85.792,85.772,2.34810142]
[1773103897345,14.04809199,85.792,85.772,2.34810142]
[1773103897641,11.65609847,85.792,85.772,2.34810142]
[1773103897847,2.39199352,85.791,85.764,14.00788534]
[1773103898047,2.39199352,85.791,85.764,2.34810142]
[1773103898247,2.39199352,85.789,85.757,2.34810142]
[1773103898549,2.39199352,85.789,85.692,46.67856632]
[1773103898550,2.39199352,85.769,85.737,2.34810142]
[1773103898741,2.39199352,85.759,85.732,11.66422964]
[1773103898946,2.39199352,85.759,85.731,2.34810142]
[1773103899341,2.39199352,85.757,85.731,2.34810142]
[1773103899745,2.39199352,85.757,85.732,11.66425605]
[1773103900952,2.39199352,85.755,85.732,11.66425605]
[1773103901654,2.39199352,85.755,85.728,11.66475199]
[1773103901855,2.39199352,85.749,85.724,2.34810142]
[1773103903247,14.0540731,85.748,85.725,2.34810142]
[1773103903441,2.39199352,85.747,85.724,11.6653187]
[1773103904760,2.39199352,85.747,85.725,2.34810142]
[1773103906453,11.66235159,85.746,85.727,2.34810142]
[1773103907758,2.39199352,85.746,85.722,11.66555307]
[1773103907953,2.39199352,85.746,85.721,2.34810142]
[1773103908941,2.44773921,85.755,85.722,2.51766575]
[1773103910344,2.44773921,85.753,85.723,11.66548067]
[1773103910662,2.44773921,85.753,85.723,14.18314642]
[1773103910840,2.44773921,85.739,85.72,1e-08]
[1773103912338,2.44773921,85.737,85.72,1e-08]
[1773103914347,4.17717466,85.74,85.72,1e-08]
[1773103914348,2.44773921,85.735,85.72,1e-08]
[1773103916049,2.44773921,85.729,85.72,1e-08]
[1773103916440,2.44773921,85.727,85.72,1e-08]
[1773103918359,2.44773921,85.743,85.721,2.51766575]
[1773103918545,14.11095019,85.74,85.721,2.51766575]
[1773103918940,2.44773921,85.767,85.731,2.51766575]
[1773103919251,2.44773921,85.759,85.731,2.51766575]
[1773103920555,11.66056753,85.76,85.741,2.51766575]
[1773103921161,2.44773921,85.759,85.732,14.1819218]
[1773103921463,2.44773921,85.759,85.733,2.51766575]
[1773103922660,2.44773921,85.759,85.732,11.66425605]
[1773103922661,11.65922419,85.769,85.735,2.51766575]
[1773103922963,2.44773921,85.768,85.735,2.51766575]
[1773103926071,2.49348257,85.766,85.735,2.51766575]
[1773103928351,46.62542954,85.791,85.72,1e-08]
[1773103928352,2.49348257,85.749,85.72,1e-08]
[1773103928554,4.17717466,85.73,85.7,0.2]
[1773103928791,2.49348257,85.729,85.71,11.8671858]
[1773103928958,2.49348257,85.735,85.711,2.43846822]
[1773103930167,2.49348257,85.759,85.721,2.43846822]
[1773103930465,40.81251893,85.758,85.727,2.43846822]
[1773103930657,2.49348257,85.757,85.727,2.43846822]
[1773103931060,2.49348257,85.757,85.728,2.43846822]
[1773103931268,2.49348257,85.757,85.731,2.43846822]
[1773103932080,2.49348257,85.757,85.71,0.2]
[1773103932081,2.49348257,85.739,85.702,2.43846822]
[1773103932261,4.17717466,85.73,85.702,2.43846822]
[1773103933066,11.66466423,85.729,85.704,2.43846822]
[1773103935881,11.66466423,85.729,85.706,2.43846822]
[1773103936386,11.66388706,85.735,85.706,2.43846822]
[1773103939177,11.66388706,85.735,85.708,2.43846822]
[1773103941880,11.66194357,85.749,85.711,2.43846822]
[1773103943086,11.66194357,85.749,85.713,2.43846822]
[1773103943469,2.49348257,85.748,85.713,2.43846822]
[1773103944368,2.49348257,85.729,85.703,2.43846822]
[1773103944770,2.49348257,85.729,85.705,2.43846822]
[1773103944973,14.1573831,85.735,85.707,2.43846822]
[1773103945381,2.49348257,85.734,85.707,2.43846822]
[1773103946376,6.67662399,85.73,85.707,2.43846822]
[1773103946593,2.49348257,85.73,85.707,2.43846822]
[1773103947688,11.66436314,85.732,85.709,2.43846822]
[1773103947892,11.66289566,85.742,85.711,2.43846822]
[1773103949574,4.18314142,85.74,85.713,2.43846822]
[1773103949777,2.49348257,85.739,85.713,2.43846822]
[1773103951394,11.66343978,85.738,85.713,2.43846822]
[1773103952091,11.66343978,85.738,85.7,4.38314142]
[1773103952092,11.66343978,85.738,85.715,2.43846822]
[1773103952799,14.15692235,85.738,85.715,2.43846822]
[1773103955590,14.15692235,85.738,85.716,11.66643333]
[1773103955785,14.15692235,85.738,85.717,2.50297484]
[1773103955786,2.49348257,85.738,85.717,2.50297484]
[1773103955981,2.34128642,85.737,85.711,11.66700017]
[1773103956304,11.66371185,85.736,85.712,2.50297484]
[1773103956487,2.34128642,85.735,85.712,2.50297484]
[1773103956888,11.66371185,85.736,85.712,2.50297484]
[1773103960298,2.34128642,85.748,85.714,2.50297484]
[1773103963402,2.34128642,85.746,85.715,11.66656944]
[1773103963700,2.34128642,85.739,85.716,2.50297484]
[1773103964686,11.66343978,85.738,85.716,2.50297484]
[1773103964892,14.0047262,85.738,85.716,2.50297484]
[1773103965101,11.66343978,85.738,85.716,2.50297484]
[1773103965403,2.34128642,85.737,85.718,2.50297484]
[1773103967713,2.34128642,85.737,85.719,14.06306523]
[1773103968586,11.66371185,85.736,85.719,2.3970402]
[1773103968790,14.09559071,85.736,85.719,2.3970402]
[1773103969407,2.43187886,85.735,85.71,4.18314142]
[1773103969713,2.43187886,85.735,85.711,2.3970402]
[1773103970014,2.43187886,85.735,85.714,2.3970402]
[1773103970207,4.18314142,85.74,85.7,0.2]
[1773103970208,2.43187886,85.733,85.708,2.3970402]
[1773103971320,2.43187886,85.731,85.709,14.06442635]
[1773103971513,2.43187886,85.731,85.709,2.3970402]
[1773103975412,2.43187886,85.731,85.71,14.06429022]
[1773103975794,2.43187886,85.731,85.711,2.3970402]
[1773103976414,2.43187886,85.729,85.711,2.3970402]
[1773103978013,4.18314142,85.77,85.721,2.3970402]
[1773103978315,2.43187886,85.768,85.741,2.3970402]
[1773103979918,2.43187886,85.759,85.731,2.3970402]
[1773103980218,2.43187886,85.757,85.731,2.3970402]
[1773103981805,2.43187886,85.757,85.73,4.18314142]
[1773103981806,2.43187886,85.757,85.733,2.3970402]
[1773103982119,2.43187886,85.768,85.742,14.05993586]
[1773103982615,2.43187886,85.768,85.74,4.18314142]
[1773103983003,2.43187886,85.768,85.741,2.3970402]
[1773103984218,2.31553212,85.766,85.741,2.3970402]
[1773103984402,2.31553212,85.766,85.701,62.4]
[1773103984604,2.31553212,85.766,85.583,97.38882327]
[1773103984605,4.18314142,85.72,85.661,2.50364882]
[1773103984822,4.18314142,85.72,85.64,0.2]
[1773103984823,4.18314142,85.67,85.64,0.2]
[1773103985019,4.18314142,85.67,85.641,2.44521493]
[1773103985418,4.18314142,85.66,85.641,2.44521493]
[1773103985823,31.71834729,85.688,85.641,2.44521493]
[1773103986023,4.18314142,85.67,85.642,2.44521493]
[1773103986516,11.67283381,85.669,85.642,2.44521493]
[1773103992821,11.67283381,85.669,85.61,0.2]
[1773103992822,2.31553212,85.649,85.61,0.2]
[1773103993118,4.18314142,85.63,85.61,0.2]
[1773103993717,4.18314142,85.65,85.611,11.68074196]
[1773103994223,4.18314142,85.64,85.611,11.68074196]
[1773103994417,4.18314142,85.65,85.611,11.68074196]
[1773103994623,4.18314142,85.66,85.62,4.18314142]
[1773103994807,4.18314142,85.66,85.63,4.18314142]
[1773103995013,11.67310633,85.667,85.64,4.18314142]
[1773103995323,11.67310633,85.667,85.641,2.44521493]
[1773103997216,4.18314142,85.67,85.641,2.44521493]
[1773103997825,2.31553212,85.659,85.631,2.44521493]
[1773103999116,11.67433281,85.658,85.631,2.44521493]
[1773104000228,11.67433281,85.658,85.633,2.44521493]
[1773104000732,11.67256131,85.671,85.651,2.44521493]
[1773104001134,25.15253872,85.673,85.651,2.44521493]
[1773104001318,25.15253872,85.673,85.653,2.44521493]
[1773104001630,25.15253872,85.673,85.66,4.18314142]
[1773104001838,25.15253872,85.673,85.661,2.44521493]
[1773104002715,11.67242506,85.672,85.654,2.44521493]
[1773104004633,25.15253872,85.673,85.655,11.67474169]
[1773104004835,25.15253872,85.673,85.656,2.44521493]
[1773104005643,25.15253872,85.673,85.625,58.39414572]
[1773104005644,1.0061962,85.669,85.567,6.84227627]
[1773104005843,6.49867354,85.58,85.54,4.18314142]
[1773104006133,11.68510966,85.579,85.568,6.07784391]
[1773104006316,2.31553212,85.58,85.55,4.18314142]
[1773104006639,2.31553212,85.58,85.545,11.68974563]
[1773104006640,11.68430145,85.585,85.545,11.68974563]
[1773104007722,11.2436105,85.58,85.54,11.2436105]
[1773104007929,11.2436105,85.58,85.541,2.44521493]
[1773104010443,11.68510966,85.579,85.543,2.44521493]
[1773104010943,58.40988686,85.602,85.542,11.69016389]
[1773104010944,2.31553212,85.619,85.571,2.44521493]
[1773104011136,2.31553212,85.619,85.581,2.44521493]
[1773104012241,2.31553212,85.629,85.6,11.2436105]
[1773104012430,2.31553212,85.637,85.61,11.2436105]
[1773104012751,2.31553212,85.637,85.601,2.44521493]
[1773104013854,2.43787077,85.629,85.59,11.2436105]
[1773104014029,2.43787077,85.629,85.6,11.2436105]
[1773104014547,2.43787077,85.627,85.6,11.2436105]
[1773104015744,2.43787077,85.627,85.575,4.82477569]
[1773104015745,2.43787077,85.619,85.585,2.43921888]
[1773104016647,2.43787077,85.617,85.585,2.43921888]
[1773104017647,11.2436105,85.61,85.576,2.43921888]
[1773104017834,11.2436105,85.6,85.576,2.43921888]
[1773104018041,2.43787077,85.607,85.576,2.43921888]
[1773104019051,2.43787077,85.605,85.576,2.43921888]
[1773104020743,2.43787077,85.599,85.576,2.43921888]
[1773104021246,2.43787077,85.599,85.57,13.68282938]
[1773104021556,2.43787077,85.599,85.571,2.43921888]
[1773104022753,2.43787077,85.597,85.571,2.43921888]
[1773104024039,2.43787077,85.618,85.591,2.43921888]
[1773104024255,2.43787077,85.617,85.6,11.2436105]
[1773104024847,2.43787077,85.615,85.591,2.43921888]
[1773104025935,2.43787077,85.615,85.581,2.43921888]
[1773104026140,40.8802093,85.616,85.59,13.68282938]
[1773104026373,43.31808007,85.616,85.59,13.68282938]
[1773104026653,2.43787077,85.615,85.59,13.68282938]
[1773104026854,2.43787077,85.615,85.59,2.43921888]
[1773104027157,2.43787077,85.613,85.59,2.43921888]
[1773104027951,2.43787077,85.613,85.583,2.43921888]
[1773104028452,2.43787077,85.609,85.575,2.43921888]
[1773104029346,2.43787077,85.607,85.575,2.43921888]
[1773104030259,11.68115129,85.608,85.581,2.43921888]
[1773104032458,2.42077278,85.612,85.583,2.50408175]
[1773104034460,11.68074196,85.611,85.583,2.50408175]
[1773104035356,11.68074196,85.611,85.585,2.50408175]
[1773104036265,14.09905934,85.629,85.591,2.50408175]
[1773104036461,14.09905934,85.629,85.584,11.68442699]
[1773104036462,14.09933211,85.627,85.601,2.50408175]
[1773104036664,2.42077278,85.626,85.601,2.50408175]
[1773104038852,11.67883211,85.625,85.601,2.50408175]
[1773104039579,2.42077278,85.624,85.601,2.50408175]
[1773104040071,11.67910491,85.623,85.601,2.50408175]
[1773104040571,11.67815729,85.63,85.603,2.50408175]
[1773104040776,11.67692289,85.639,85.611,2.50408175]
[1773104041677,11.67692289,85.639,85.621,2.50408175]
[1773104042059,11.67487799,85.654,85.621,2.50408175]
[1773104042269,2.42077278,85.654,85.623,2.50408175]
[1773104044454,2.52411278,85.652,85.63,11.2436105]
[1773104044776,2.52411278,85.652,85.625,2.48116918]
[1773104046573,2.52411278,85.65,85.625,2.48116918]
[1773104046779,13.76772328,85.65,85.573,29.18688696]
[1773104046983,2.52411278,85.649,85.61,13.72477968]
[1773104047288,2.52411278,85.639,85.61,2.48116918]
[1773104047876,2.52411278,85.629,85.601,2.48116918]
[1773104048773,2.52411278,85.629,85.576,3.69383402]
[1773104048774,2.52411278,85.636,85.611,2.48116918]
[1773104051478,14.19967233,85.649,85.621,2.48116918]
[1773104051972,2.52411278,85.648,85.621,2.48116918]
[1773104052185,2.52411278,85.648,85.613,2.48116918]
[1773104052979,2.52411278,85.648,85.621,2.48116918]
[1773104053581,11.67583219,85.647,85.623,2.48116918]
[1773104056401,11.67583219,85.647,85.624,11.67896851]
[1773104056581,11.67583219,85.647,85.625,2.48116918]
[1773104057874,14.19994497,85.647,85.625,2.48116918]
[1773104058485,2.52411278,85.646,85.625,2.48116918]
[1773104060067,14.20021763,85.645,85.625,2.48116918]
[1773104060795,2.52411278,85.644,85.612,2.48116918]
[1773104061093,2.52411278,85.639,85.606,2.48116918]
[1773104062974,2.52411278,85.637,85.608,2.48116918]
[1773104063381,2.52411278,85.637,85.611,2.48116918]
[1773104065875,2.52411278,85.635,85.611,2.48116918]
[1773104067271,11.67760468,85.634,85.611,2.48116918]
[1773104068082,14.20171746,85.634,85.611,2.48116918]
[1773104069691,2.52411278,85.633,85.611,2.48116918]
[1773104070294,2.52411278,85.648,85.612,2.48116918]